bitfinex/quotes_SOLUSD_20251120
["timestamp","ask_amount","ask_price","bid_price","bid_amount"]
[1763649398004,26.61506221,140.93,140.76,0.71042909]
[1763649398005,10.64914374,140.87,140.78,9.78882769]
[1763649398208,18.12096,140.9,140.73,2.71058053]
[1763649398209,10.64914374,140.84,140.79,10.64914374]
[1763649398433,10.64914374,140.82,140.74,1.78]
[1763649398617,1.78,140.81,140.77,10.64914374]
[1763649398797,10.64914374,140.82,140.77,10.64914374]
[1763649399002,1.78,140.81,140.78,10.64914374]
[1763649399321,12.42914374,140.81,140.76,10.64914374]
[1763649399620,12.42914374,140.81,140.74,27.00616273]
[1763649399621,0.72,140.8,140.75,10.64914374]
[1763649399812,30.55010374,140.81,140.72,34.66091409]
[1763649399993,1.42701357,140.85,140.75,9.78882769]
[1763649400194,1.78,140.84,140.8,10.64914374]
[1763649400414,2.5,140.84,140.79,10.64914374]
[1763649400614,2.5,140.84,140.78,10.64914374]
[1763649400615,11.36914374,140.83,140.78,10.64914374]
[1763649400802,13.03750998,140.83,140.78,12.31750998]
[1763649401008,0.72,140.82,140.75,36.79453567]
[1763649401206,0.72,140.82,140.78,12.31750998]
[1763649401432,12.31750998,140.81,140.76,12.31750998]
[1763649401731,12.31750998,140.79,140.74,12.31750998]
[1763649401922,14.81750998,140.8,140.73,9.78882769]
[1763649402130,14.81750998,140.8,140.75,12.31750998]
[1763649402313,0.72,140.8,140.75,12.31750998]
[1763649402638,12.31750998,140.81,140.76,12.31750998]
[1763649402834,19.41956755,140.81,140.76,12.31750998]
[1763649403013,12.31750998,140.79,140.73,11.56882769]
[1763649403328,13.03750998,140.8,140.75,9.78882769]
[1763649403519,24.85647842,140.81,140.76,12.31750998]
[1763649403722,1.78,140.81,140.78,12.31750998]
[1763649403927,0.70701357,140.85,140.74,9.78882769]
[1763649403928,0.72,140.87,140.8,12.31750998]
[1763649404110,14.09750998,140.86,140.77,9.78882769]
[1763649404311,12.31750998,140.84,140.78,12.31750998]
[1763649404539,12.31750998,140.84,140.79,12.31750998]
[1763649404735,9.59994252,140.85,140.77,9.78882769]
[1763649404909,9.59994252,140.85,140.8,12.31750998]
[1763649405112,1.42701357,140.84,140.74,0.21]
[1763649405340,26.62932129,140.85,140.74,0.21]
[1763649405341,7.09994252,140.85,140.8,12.31750998]
[1763649405520,2.5,140.84,140.8,12.31750998]
[1763649405716,13.03750998,140.84,140.77,9.78882769]
[1763649405930,13.03750998,140.87,140.82,12.31750998]
[1763649406133,21.91635677,140.87,140.82,12.31750998]
[1763649406339,0.72,140.86,140.82,12.31750998]
[1763649406513,13.02452355,140.85,140.76,0.21]
[1763649406707,2.5,140.86,140.82,12.31750998]
[1763649406933,21.91693641,140.86,140.8,12.31750998]
[1763649407163,18.82797357,140.87,140.82,12.31750998]
[1763649407448,0.70701357,140.95,140.87,9.78882769]
[1763649407662,14.81750998,140.96,140.91,12.31750998]
[1763649407945,108.00811813,141.09,140.91,12.31750998]
[1763649407946,0.1,141.02,140.95,30.43846998]
[1763649408240,7.19122205,141.02,140.99,12.31750998]
[1763649408416,7.19122205,141.02,140.95,18.12096]
[1763649408417,1.42701357,141.01,140.95,18.12096]
[1763649408622,0.72,141.01,140.97,12.31750998]
[1763649408822,12.31750998,140.99,140.94,12.31750998]
[1763649409018,12.31750998,140.99,140.92,18.12096]
[1763649409019,12.31750998,140.98,140.92,18.12096]
[1763649409227,1.78,140.99,140.89,22.10633767]
[1763649409228,12.31750998,140.95,140.89,22.10633767]
[1763649409527,12.31750998,140.92,140.83,9.78882769]
[1763649409733,12.31750998,140.92,140.8,10.11707803]
[1763649409734,12.31750998,140.92,140.86,12.31750998]
[1763649409937,13.03750998,140.92,140.86,12.31750998]
[1763649410233,13.03750998,140.92,140.85,1.78]
[1763649410234,12.31750998,140.9,140.85,1.78]
[1763649410424,0.7,140.91,140.86,12.31750998]
[1763649410754,13.01750998,140.97,140.88,16.88706732]
[1763649410955,13.02452355,140.96,140.89,1.78]
[1763649411166,13.72452355,140.96,140.91,12.31750998]
[1763649411458,0.70701357,140.95,140.89,1.78]
[1763649411620,1.40701357,140.95,140.88,9.78882769]
[1763649411821,12.31750998,140.93,140.88,12.31750998]
[1763649412047,14.80452355,140.93,140.88,12.31750998]
[1763649412228,0.7,140.92,140.88,12.31750998]
[1763649412431,13.01750998,140.92,140.87,12.31750998]
[1763649412719,13.01750998,140.92,140.78,0.71032817]
[1763649412720,37.15782224,140.9,140.79,9.78882769]
[1763649413045,38.93782224,140.9,140.84,12.31750998]
[1763649413242,18.12096,140.93,140.83,1.78]
[1763649413243,30.43846998,140.93,140.83,1.78]
[1763649413551,37.8618101,140.92,140.83,1.78]
[1763649413724,19.41423451,140.92,140.83,1.78]
[1763649413924,25.54430012,140.92,140.84,9.99882769]
[1763649414221,7.79672453,140.92,140.88,12.31750998]
[1763649414424,7.09582416,140.93,140.89,12.31750998]
[1763649414741,1.78,140.96,140.92,12.31750998]
[1763649414944,13.01750998,140.95,140.9,12.31750998]
[1763649415247,0.7,140.95,140.9,12.31750998]
[1763649415555,0.7,140.95,140.86,0.21]
[1763649415556,12.31750998,140.91,140.86,12.31750998]
[1763649415743,14.80452355,140.92,140.87,12.31750998]
[1763649415928,14.09750998,140.94,140.89,12.31750998]
[1763649416122,0.7,140.93,140.88,12.31750998]
[1763649416353,0.7,140.93,140.89,12.31750998]
[1763649416529,1.78,140.94,140.9,12.31750998]
[1763649416731,7.09233808,141.0,140.94,7.09521782]
[1763649416924,20.10984806,141.0,140.95,12.31750998]
[1763649417244,20.10984806,141.0,140.93,1.78]
[1763649417245,12.31750998,140.98,140.93,12.31750998]
[1763649417423,12.31750998,140.98,140.92,1.78]
[1763649417424,13.01750998,140.97,140.92,12.31750998]
[1763649417619,12.31750998,140.95,140.9,12.31750998]
[1763649417822,13.02452355,140.95,140.9,12.31750998]
[1763649418048,13.01750998,140.94,140.89,12.31750998]
[1763649418249,0.70701357,140.95,140.88,12.31750998]
[1763649418250,2.48,140.93,140.88,12.31750998]
[1763649418429,2.48,140.93,140.87,19.90096]
[1763649418430,13.02452355,140.92,140.87,12.31750998]
[1763649418630,13.72452355,140.92,140.86,1.78]
[1763649418832,7.09723207,140.9,140.87,12.31750998]
[1763649419037,7.79683963,140.91,140.86,1.78]
[1763649419337,1.78,140.93,140.88,12.31750998]
[1763649419338,8.87614772,140.93,140.88,12.31750998]
[1763649419560,0.7,140.91,140.87,12.31750998]
[1763649419746,13.02452355,140.92,140.85,1.78]
[1763649419747,0.70701357,140.92,140.85,1.78]
[1763649419918,19.90096,140.93,140.86,9.78882769]
[1763649419919,27.69699254,140.93,140.86,9.78882769]
[1763649420119,0.7,140.92,140.86,9.78882769]
[1763649420424,40.02151609,140.93,140.85,1.78]
[1763649420425,1.78,140.93,140.85,19.90096]
[1763649420642,2.48,140.94,140.9,12.31750998]
[1763649420844,0.7,140.98,140.93,12.31750998]
[1763649421047,0.7,140.98,140.91,8.87631262]
[1763649421048,7.19137561,141.02,140.97,12.31750998]
[1763649421245,7.19137561,141.02,141.0,12.31750998]
[1763649421246,0.1,141.02,141.0,12.31750998]
[1763649421445,0.1,141.02,141.01,40.22729767]
[1763649421646,0.1,141.05,141.04,12.31750998]
[1763649421847,0.1,141.05,141.01,18.12096]
[1763649422172,7.88994586,141.05,141.01,12.31750998]
[1763649422457,30.43846998,141.02,140.91,5.86391921]
[1763649422756,7.09421112,140.96,140.91,11.56882769]
[1763649422966,12.31750998,140.95,140.9,12.31750998]
[1763649423168,0.7,140.95,140.91,12.31750998]
[1763649423454,12.31750998,140.96,140.91,18.12096]
[1763649423655,2.48701357,140.98,140.91,18.12096]
[1763649423959,0.7,140.99,140.94,12.31750998]
[1763649424150,35.54871959,141.05,140.93,9.78882769]
[1763649424151,13.01750998,141.0,140.95,12.31750998]
[1763649424354,12.31750998,141.0,140.95,12.31750998]
[1763649424555,0.70701357,141.01,140.96,12.31750998]
[1763649424556,18.12096,141.01,140.96,12.31750998]
[1763649424731,0.7,141.06,141.0,7.09219858]
[1763649425058,0.7,141.08,141.03,12.31750998]
[1763649425271,12.31750998,141.09,141.04,12.31750998]
[1763649425468,0.7,141.04,140.98,25.213798]
[1763649425629,0.7,141.04,141.0,12.31750998]
[1763649425829,0.7,141.04,141.01,12.31750998]
[1763649426054,7.19011577,141.05,141.03,12.31750998]
[1763649426055,0.1,141.05,141.03,12.31750998]
[1763649426253,0.7,141.04,140.99,11.56882769]
[1763649426479,7.88993526,141.05,141.01,12.31750998]
[1763649426688,0.8,141.05,141.02,12.31750998]
[1763649426874,0.1,141.05,141.04,22.10633767]
[1763649427255,0.8,141.12,141.11,12.31750998]
[1763649427256,0.1,141.12,141.11,12.31750998]
[1763649427451,0.1,141.12,141.11,11.56882769]
[1763649427653,0.1,141.12,141.11,12.31750998]
[1763649428164,0.1,141.12,141.09,18.12096]
[1763649428373,0.1,141.12,141.1,14.09750998]
[1763649428558,0.1,141.12,141.11,12.31750998]
[1763649428759,0.1,141.21,141.14,18.12096]
[1763649428982,0.1,141.21,141.2,12.31750998]
[1763649429294,0.1,141.21,141.18,29.68978769]
[1763649429598,0.8,141.21,141.18,18.12096]
[1763649429763,0.8,141.21,141.2,12.31750998]
[1763649429764,0.1,141.21,141.2,12.31750998]
[1763649430163,0.1,141.21,141.2,40.22729767]
[1763649430571,0.1,141.21,141.2,42.00729767]
[1763649430771,0.1,141.21,141.2,49.08945064]
[1763649430975,0.1,141.21,141.2,30.96849064]
[1763649431180,0.1,141.21,141.16,18.12096]
[1763649431468,0.1,141.21,141.2,40.22729767]
[1763649431801,1e-08,141.21,141.2,23.88633767]
[1763649432300,1e-08,141.21,141.2,25.88633766]
[1763649432661,1e-08,141.21,141.2,40.22729767]
[1763649432865,1e-08,141.21,141.2,22.10633767]
[1763649433263,1e-08,141.21,141.2,12.31750998]
[1763649433570,1e-08,141.21,141.2,40.22729767]
[1763649434387,1e-08,141.21,141.2,42.00729767]
[1763649434784,1e-08,141.21,141.2,30.96849064]
[1763649435490,52.39441276,141.43,141.24,27.90978769]
[1763649435491,0.7,141.35,141.24,27.90978769]
[1763649435795,0.7,141.35,141.31,12.31750998]
[1763649435967,0.7,141.35,141.3,14.09750998]
[1763649436170,0.70701357,141.34,141.28,12.31750998]
[1763649436475,12.31750998,141.33,141.21,9.78882769]
[1763649436677,12.31750998,141.3,141.25,12.31750998]
[1763649436986,7.07772329,141.29,141.25,12.31750998]
[1763649437171,7.77772329,141.29,141.26,12.31750998]
[1763649437367,1.40701357,141.28,141.24,12.31750998]
[1763649437578,0.7,141.27,141.26,12.31750998]
[1763649437779,0.7,141.27,141.23,9.78882769]
[1763649437976,0.7,141.27,141.25,12.31750998]
[1763649438181,7.07664001,141.31,141.26,12.31750998]
[1763649438382,0.7,141.3,141.26,12.31750998]
[1763649438782,0.7,141.3,141.25,1.78]
[1763649438991,20.8017402,141.3,141.25,14.09750998]
[1763649439176,12.31750998,141.28,141.23,12.31750998]
[1763649439506,12.31750998,141.26,141.21,12.31750998]
[1763649439713,0.7,141.25,141.21,12.31750998]
[1763649440001,0.7,141.25,141.19,11.56882769]
[1763649440002,13.02452355,141.24,141.19,14.09750998]
[1763649440207,12.31750998,141.24,141.19,14.09750998]
[1763649440365,0.67,141.27,141.22,12.31750998]
[1763649440706,12.31750998,141.23,141.09,100.0]
[1763649440916,12.31750998,141.23,141.14,12.31750998]
[1763649440917,24.78402491,141.22,141.14,12.31750998]
[1763649441091,12.31750998,141.16,141.01,101.99999999]
[1763649441400,12.31750998,141.12,141.07,12.31750998]
[1763649441764,0.67,141.12,141.09,12.31750998]
[1763649442084,0.67,141.16,141.09,19.90096]
[1763649442267,0.67,141.16,141.12,12.31750998]
[1763649442466,0.67,141.16,141.13,12.31750998]
[1763649442689,0.67,141.16,141.12,1.78]
[1763649442996,7.75428245,141.16,141.04,1.99999999]
[1763649443169,12.31750998,141.15,141.04,9.78882769]
[1763649443368,0.67,141.15,141.09,12.31750998]
[1763649443578,12.98750998,141.14,141.08,1.78]
[1763649443785,12.31750998,141.13,141.08,12.31750998]
[1763649444101,12.31750998,141.13,141.06,1.78]
[1763649444102,18.79096,141.13,141.06,1.78]
[1763649444390,12.31750998,141.1,141.04,1.78]
[1763649444594,12.31750998,141.1,141.03,1.78]
[1763649444771,12.31750998,141.11,141.06,12.31750998]
[1763649444971,12.98750998,141.12,141.07,12.31750998]
[1763649445221,12.98750998,141.12,141.06,12.31750998]
[1763649445222,12.31750998,141.11,141.06,12.31750998]
[1763649445374,12.31750998,141.08,140.97,9.78882769]
[1763649445701,12.31750998,141.09,141.03,12.31750998]
[1763649445901,0.67,141.14,141.08,12.31750998]
[1763649446107,12.98750998,141.13,141.06,1.78]
[1763649446311,0.67,141.14,141.1,12.31750998]
[1763649446811,1.78,141.2,141.12,12.31750998]
[1763649446991,60.89691564,141.22,141.14,19.40267364]
[1763649446992,0.67,141.19,141.14,19.40267364]
[1763649447198,0.67,141.19,141.14,24.79807282]
[1763649447422,0.70701357,141.24,141.18,12.31750998]
[1763649447423,0.67,141.23,141.18,12.31750998]
[1763649447697,12.98750998,141.23,141.12,0.70861678]
[1763649447995,0.67,141.23,141.2,12.31750998]
[1763649448192,1.37701357,141.22,141.16,12.31750998]
[1763649448599,1.37701357,141.22,141.15,12.31750998]
[1763649448600,0.67,141.21,141.15,12.31750998]
[1763649448902,0.67,141.21,141.11,30.43846998]
[1763649448903,12.31750998,141.17,141.11,30.43846998]
[1763649449193,12.31750998,141.15,141.1,12.31750998]
[1763649449398,0.67,141.16,141.11,1.78]
[1763649449602,12.31750998,141.19,141.14,12.31750998]
[1763649449807,0.67,141.18,141.15,12.31750998]
[1763649449973,0.67,141.18,141.06,0.70891819]
[1763649449974,12.31750998,141.16,141.0,24.82269503]
[1763649450309,20.57096,141.18,141.09,12.31750998]
[1763649450310,18.79096,141.18,141.09,12.31750998]
[1763649450515,12.31750998,141.16,141.11,12.31750998]
[1763649450687,0.67,141.17,141.11,12.31750998]
[1763649450873,12.31750998,141.15,141.09,9.78882769]
[1763649451075,0.67,141.16,141.08,1.78]
[1763649451076,37.7855828,141.14,141.08,12.31750998]
[1763649451274,12.31750998,141.12,141.07,12.31750998]
[1763649451513,12.31750998,141.1,140.97,7.09370788]
[1763649451802,14.09750998,141.1,141.05,12.31750998]
[1763649452015,0.67,141.09,141.03,12.31750998]
[1763649452187,0.67,141.09,141.01,1.78]
[1763649452188,12.31750998,141.07,141.01,12.31750998]
[1763649452396,0.67,141.1,141.01,1.78]
[1763649452592,0.67,141.09,141.01,1.78]
[1763649452793,0.67,141.09,141.02,9.78882769]
[1763649452999,0.67,141.09,141.01,1.78]
[1763649453000,7.08817692,141.08,141.01,1.78]
[1763649453192,7.08817692,141.08,141.01,8.8716892]
[1763649453522,0.67,141.07,141.01,8.87167217]
[1763649453824,0.67,141.07,141.02,9.78882769]
[1763649453985,0.67,141.07,141.01,18.12096]
[1763649454181,14.76750998,141.07,140.95,17.73643051]
[1763649454427,14.76750998,141.07,140.89,7.8639192]
[1763649454428,30.43846998,141.03,140.89,7.09773582]
[1763649454582,30.43846998,141.03,140.94,12.31750998]
[1763649454583,1.78,141.02,140.94,12.31750998]
[1763649454782,0.67,141.02,140.99,12.31750998]
[1763649455182,0.67,141.02,140.98,12.31750998]
[1763649455380,0.67,141.02,140.95,8.87469258]
[1763649455381,7.76119744,141.02,140.95,26.99565258]
[1763649455607,9.54119744,141.02,140.98,12.31750998]
[1763649455802,9.54119744,141.02,140.97,12.31750998]
[1763649455803,0.67,141.01,140.97,12.31750998]
[1763649456111,0.67,141.01,140.99,12.31750998]
[1763649456611,0.67,141.01,140.98,12.31750998]
[1763649456929,12.31750998,141.06,141.0,12.31750998]
[1763649457216,0.67,141.05,141.02,12.31750998]
[1763649457426,0.67,141.05,141.03,12.31750998]
[1763649457593,0.67,141.07,141.04,12.31750998]
[1763649457917,0.67,141.07,141.0,18.12096]
[1763649458118,19.90096,141.06,140.99,11.56882769]
[1763649458292,19.90096,141.06,141.04,12.31750998]
[1763649458493,20.57096,141.06,141.04,12.31750998]
[1763649458726,0.67,141.05,141.0,9.78882769]
[1763649459218,0.67,141.05,140.99,1.78]
[1763649459421,18.12096,141.04,140.97,9.78882769]
[1763649459720,0.67,141.03,141.0,12.31750998]
[1763649459932,31.10846998,141.03,140.98,12.31750998]
[1763649460429,18.12096,141.04,141.02,12.31750998]
[1763649460600,18.79096,141.04,141.02,12.31750998]
[1763649460804,0.67,141.03,141.01,12.31750998]
[1763649461039,1.99999999,141.13,141.01,12.31750998]
[1763649461040,0.67,141.11,141.03,34.60624242]
[1763649461234,0.67,141.11,141.09,12.31750998]
[1763649461528,0.67,141.11,140.98,2.70932046]
[1763649461529,18.12096,141.07,140.98,11.56882769]
[1763649461744,0.67,141.06,141.02,12.31750998]
[1763649461902,0.67,141.06,141.04,12.31750998]
[1763649462097,18.12096,141.07,140.96,17.73531319]
[1763649462098,0.67,141.08,141.02,9.78882769]
[1763649462302,1.99999999,141.19,141.02,9.78882769]
[1763649462303,0.67,141.09,141.07,12.31750998]
[1763649462615,1.78,141.14,141.08,12.31750998]
[1763649462821,11.27511701,141.12,141.02,18.12096]
[1763649463020,11.27511701,141.12,141.02,1.78]
[1763649463021,24.80686086,141.09,141.02,1.78]
[1763649463338,18.36279154,141.09,141.04,11.27511701]
[1763649463504,18.36279154,141.09,141.01,9.78882769]
[1763649463505,12.65213058,141.08,141.03,11.27511701]
[1763649464039,11.27511701,141.06,140.95,7.09471443]
[1763649464245,11.27511701,141.05,141.0,11.27511701]
[1763649464537,11.27511701,141.05,140.98,18.12096]
[1763649464538,11.94511701,141.05,140.98,18.12096]
[1763649464834,34.59568855,141.09,141.02,11.27511701]
[1763649464835,0.67,141.04,141.02,11.27511701]
[1763649465133,0.67,141.04,141.0,11.27511701]
[1763649465346,0.67,141.04,141.02,11.27511701]
[1763649465635,1.99999999,141.15,141.03,11.27511701]
[1763649465806,1.99999999,141.15,140.99,9.78882769]
[1763649465807,0.67,141.07,141.04,11.27511701]
[1763649466407,0.67,141.07,141.03,11.27511701]
[1763649466623,0.70701357,141.06,140.99,29.68978769]
[1763649466926,0.67,141.07,141.05,11.27511701]
[1763649467532,7.75871212,141.07,141.02,1.78]
[1763649467835,0.67,141.07,141.03,11.27511701]
[1763649468044,0.67,141.07,141.04,11.27511701]
[1763649468234,18.12096,141.1,141.06,11.27511701]
[1763649468235,0.67,141.1,141.06,11.27511701]
[1763649468411,0.67,141.1,141.03,11.56882769]
[1763649468612,18.12096,141.09,141.06,11.27511701]
[1763649468831,0.67,141.1,141.08,6.98057153]
[1763649469046,7.08576542,141.13,141.09,6.98057153]
[1763649469347,0.67,141.13,141.11,6.98057153]
[1763649469530,0.67,141.13,141.12,6.98057153]
[1763649469713,0.67,141.13,141.11,6.98057153]
[1763649470127,0.67,141.13,141.07,1.78]
[1763649470341,0.67,141.13,141.09,6.98057153]
[1763649470709,0.70701357,141.15,141.11,6.98057153]
[1763649470914,1.99999999,141.23,141.11,6.98057153]
[1763649470915,0.66,141.22,141.14,6.98057153]
[1763649471214,7.08165144,141.21,141.19,6.98057153]
[1763649471414,0.66,141.22,141.2,6.98057153]
[1763649471625,0.66,141.21,141.15,25.20540129]
[1763649471830,19.48797357,141.21,141.13,11.56882769]
[1763649472135,18.78096,141.21,141.18,6.98057153]
[1763649472342,0.66,141.21,141.19,6.98057153]
[1763649472531,0.66,141.24,141.2,6.98057153]
[1763649472840,0.66,141.24,141.21,6.98057153]
[1763649473019,0.66,141.24,141.22,6.98057153]
[1763649473217,0.66,141.24,141.23,6.98057153]
[1763649473434,0.66,141.27,141.23,6.98057153]
[1763649473611,26.97924615,141.28,141.21,9.78882769]
[1763649473818,0.66,141.27,141.21,9.78882769]
[1763649474128,0.66,141.27,141.13,1.99999999]
[1763649474129,0.70701357,141.26,141.13,1.99999999]
[1763649474316,0.70701357,141.26,141.22,6.98057153]
[1763649474516,0.66,141.25,141.21,6.98057153]
[1763649474710,18.12096,141.24,141.21,6.98057153]
[1763649474911,0.70701357,141.24,141.15,29.68978769]
[1763649475113,42.90498491,141.22,141.17,6.98057153]
[1763649475310,42.90498491,141.22,141.09,7.08733902]
[1763649475311,18.12096,141.19,141.09,7.08733902]
[1763649475544,0.70701357,141.18,141.14,6.98057153]
[1763649475841,1.78,141.17,141.09,1.78]
[1763649476030,6.98057153,141.15,141.04,6.98057153]
[1763649476347,0.70701357,141.14,141.09,6.98057153]
[1763649476527,1.36701357,141.14,141.09,6.98057153]
[1763649476924,0.66,141.13,141.09,11.27267563]
[1763649477245,7.74566605,141.13,141.09,11.27267563]
[1763649477413,0.66,141.13,141.1,11.27267563]
[1763649477614,7.74573381,141.13,141.1,11.27267563]
[1763649478148,0.66,141.12,141.08,11.27267563]
[1763649478314,0.66,141.13,141.11,11.27267563]
[1763649478512,0.70701357,141.16,141.11,11.27267563]
[1763649478844,0.70701357,141.16,141.12,11.27267563]
[1763649478845,1.36701357,141.16,141.12,11.27267563]
[1763649479054,0.66,141.16,141.13,11.27267563]
[1763649479355,7.74436535,141.16,141.13,11.27267563]
[1763649479539,7.74436535,141.16,141.1,16.87566213]
[1763649479540,0.66,141.16,141.14,11.27267563]
[1763649479712,0.66,141.16,141.11,11.27267563]
[1763649479713,0.66,141.15,141.11,11.27267563]
[1763649479919,0.66,141.15,141.09,11.27267563]
[1763649479920,18.12096,141.13,141.09,11.27267563]
[1763649480244,18.12096,141.13,141.06,9.78882769]
[1763649480552,0.66,141.18,141.07,18.82982793]
[1763649480718,9.78882769,141.23,141.07,18.82982793]
[1763649480719,0.66,141.23,141.17,29.39363563]
[1763649480917,0.70701357,141.35,141.22,11.27267563]
[1763649481135,0.66,141.29,141.21,19.90096]
[1763649481315,18.12096,141.27,141.23,11.27267563]
[1763649481519,18.12096,141.24,141.15,9.78882769]
[1763649481840,11.27267563,141.21,141.15,11.27267563]
[1763649482043,0.70701357,141.2,141.16,11.27267563]
[1763649482352,1.36701357,141.23,141.19,11.27267563]
[1763649482551,0.66,141.22,141.19,11.27267563]
[1763649482930,1.99999999,141.31,141.19,11.27267563]
[1763649482931,0.66,141.29,141.21,11.27267563]
[1763649483242,7.73807494,141.29,141.27,11.27267563]
[1763649483426,2.58701357,141.32,141.24,9.78882769]
[1763649483427,0.66,141.31,141.24,9.78882769]
[1763649483625,0.66,141.31,141.27,11.27267563]
[1763649483827,0.66,141.31,141.22,1.78]
[1763649483828,18.12096,141.28,141.22,1.78]
[1763649484031,0.70701357,141.27,141.24,11.27267563]
[1763649484227,1.78,141.28,141.21,34.99127976]
[1763649484451,1.78,141.28,141.22,9.78882769]
[1763649484654,0.66,141.27,141.22,11.27267563]
[1763649484950,0.66,141.27,141.15,9.78882769]
[1763649484951,11.27267563,141.23,141.15,9.78882769]
[1763649485150,0.70701357,141.22,141.13,7.08557949]
[1763649485342,1.78,141.23,141.18,11.27267563]
[1763649485549,0.70701357,141.22,141.19,11.27267563]
[1763649485853,25.20073584,141.25,141.21,11.27267563]
[1763649486151,0.66,141.24,141.22,11.27267563]
[1763649486346,1.36701357,141.24,141.2,11.27267563]
[1763649486653,1.36701357,141.24,141.19,11.27267563]
[1763649486863,0.66,141.23,141.2,11.27267563]
[1763649487031,0.66,141.23,141.06,5.86391921]
[1763649487032,11.27267563,141.21,141.06,5.86391921]
[1763649487366,7.08265457,141.19,141.15,11.27267563]
[1763649487722,2.44,141.18,141.15,11.27267563]
[1763649488028,18.12096,141.22,141.17,11.27267563]
[1763649488230,0.66,141.26,141.21,11.27267563]
[1763649488458,9.51930119,141.26,141.23,11.27267563]
[1763649488625,0.70701357,141.25,141.15,18.12096]
[1763649488830,18.12096,141.23,141.18,11.27267563]
[1763649489026,13.7596892,141.22,141.14,1.78]
[1763649489234,14.4196892,141.22,141.16,11.27267563]
[1763649489454,14.4196892,141.22,141.17,11.27267563]
[1763649489455,25.44578004,141.21,141.17,11.27267563]
[1763649489625,1.78,141.2,141.12,1.78]
[1763649489953,3.14701357,141.2,141.16,11.27267563]
[1763649490262,25.20212386,141.22,141.19,11.27267563]
[1763649490467,18.12096,141.22,141.19,11.27267563]
[1763649490768,8.86124769,141.22,141.2,11.27267563]
[1763649490976,0.66,141.26,141.21,11.27267563]
[1763649491137,0.66,141.26,141.24,11.27267563]
[1763649491138,1.78,141.25,141.24,11.27267563]
[1763649491342,7.73730513,141.3,141.25,7.07964601]
[1763649491666,0.66,141.29,141.24,7.0799749]
[1763649491874,0.66,141.29,141.28,11.27267563]
[1763649492231,0.66,141.29,141.21,27.90978769]
[1763649492432,1.78,141.28,141.26,11.27267563]
[1763649492631,1.78,141.28,141.23,11.27267563]
[1763649492632,19.48797357,141.27,141.23,11.27267563]
[1763649493070,19.48797357,141.27,141.24,11.27267563]
[1763649493071,0.66,141.26,141.24,11.27267563]
[1763649493265,0.66,141.26,141.12,17.13659484]
[1763649493266,13.7596892,141.25,141.12,17.13659484]
[1763649493475,9.78882769,141.23,141.15,11.27267563]
[1763649493629,9.78882769,141.23,141.09,7.08767453]
[1763649493630,2.48701357,141.22,141.18,11.27267563]
[1763649493938,14.4196892,141.22,141.17,11.27267563]
[1763649494141,14.4196892,141.22,141.12,1.78]
[1763649494142,18.78096,141.21,141.18,11.27267563]
[1763649494353,18.12096,141.21,141.19,11.27267563]
[1763649494536,19.90096,141.21,141.17,11.27267563]
[1763649494844,0.66,141.2,141.16,11.27267563]
[1763649495040,0.70701357,141.21,141.18,11.27267563]
[1763649495262,2.44,141.2,141.17,11.27267563]
[1763649495474,7.08265457,141.19,141.12,11.56882769]
[1763649495670,36.72196664,141.19,141.13,11.27267563]
[1763649495959,0.66,141.18,141.15,11.27267563]
[1763649496148,1.78,141.17,141.15,11.27267563]
[1763649496528,0.66,141.16,141.15,11.27267563]
[1763649496933,0.66,141.16,141.1,36.77695885]
[1763649496934,0.66,141.16,141.1,1.78]
[1763649497163,0.66,141.16,141.13,11.27267563]
[1763649497530,7.0846617,141.15,141.13,11.27267563]
[1763649497762,1.78,141.14,141.11,11.27267563]
[1763649498063,11.27267563,141.13,141.08,11.27267563]
[1763649498268,11.93267563,141.13,141.05,7.0896845]
[1763649498481,30.05363563,141.12,141.04,0.2]
[1763649498771,31.83363563,141.12,141.07,11.27267563]
[1763649498940,0.66,141.11,141.07,11.27267563]
[1763649499458,24.80510275,141.1,141.06,11.27267563]
[1763649499650,1.78,141.09,141.06,11.27267563]
[1763649499851,2.44,141.09,141.07,11.27267563]
[1763649500161,0.66,141.08,141.05,11.27267563]
[1763649500336,11.93267563,141.08,141.04,0.2]
[1763649500536,18.78096,141.08,141.04,11.47267563]